Cogmind - Beta 12 X1 @@@ ROGUE MODE // 2022.08.11 @ 15:58:30 Player: Momo Result: Destroyed by G-34 Mercenary with Small Laser Performance ------------- Evolutions (1) 500 Regions Visited (4) 800 Robots Destroyed (57) 285 Value Destroyed (1429) 1429 Prototype IDs (5) 100 Alien Tech Used (0) 0 Bonus (-2250) -2250 TOTAL SCORE: 864 Bonus ------- High Alert Combat Kills 217 Follower Combat Kills 248 Entered Garrisons 200 Friendly Fire -2915 Cogmind --------- Core Integrity 0/400 Matter 72/300 Energy 100/100 System Corruption 0% Temperature Cool (6) Movement Core (400) Ox7 Location -9/Garrison Parts ------- > --- POWER (1) -------- (None) > --- PROPULSION (4) --- (None) > --- UTILITY (2) ------ Large Storage Unit Salvage Targeting Computer > --- WEAPON (2) ------- Heavy Hammer > --- INVENTORY (15) --- Improved Ion Engine Experimental Heat Sink Weight Redist. System Signal Interpreter Improved Targeting Computer Medium Armor Plating Hacking Suite Hacking Suite Hacking Suite Hacking Suite Hacking Suite Ion Burst Cannon Guided EMP Blaster Peak State ------------ > --- POWER ------------ Cooled Ion Engine > --- PROPULSION ------- Compact Wheel Improved Flight Unit Improved Flight Unit Improved Flight Unit > --- UTILITY ---------- Large Storage Unit Visual Processing Unit > --- WEAPON ----------- Improved Assault Rifle Improved Assault Rifle > --- INVENTORY -------- Improved Ion Engine Signal Interpreter Hacking Suite Hacking Suite Hacking Suite Hacking Suite Shock Rifle Shock Rifle Beam Rifle Improved Medium Laser Heavy Assault Rifle Guided EMP Blaster Heavy Hammer [Rating: 26] Favorites ----------- Power Cooled Ion Engine Engine Cooled Ion Engine Propulsion Improved Flight Unit Wheel Compact Wheel Hover Unit Improved Hover Unit Flight Unit Improved Flight Unit Utility Large Storage Unit Storage Large Storage Unit Processor Salvage Targeting Computer Protection Light Armor Plating Weapon Improved Assault Rifle Energy Gun Medium Laser Ballistic Gun Improved Assault Rifle Launcher Mini Grenade Launcher Impact Weapon Heavy Hammer Build | -11 -10 -9 -9 -9 ------- Run | Scr Mat Mat Sto Gar Slots Evolved 2 | . . 2 . . Power . | . . . . . Propulsion 2 | . . 2 . . Utility . | . . . . . Weapon . | . . . . . Parts Attached 29 | 6 1 4 17 1 Power 3 | 1 . 1 1 . Engine 3 | 1 . 1 1 . Core . | . . . . . Reactor . | . . . . . Propulsion 11 | 2 . 1 8 . Treads . | . . . . . Leg . | . . . . . Wheel 4 | 2 . 1 1 . Hover 4 | . . . 4 . Flight 3 | . . . 3 . Utility 5 | 1 1 1 2 . Device . | . . . . . Storage 2 | 1 1 . . . Processor 2 | . . . 2 . Hackware . | . . . . . Protection 1 | . . 1 . . Artifact . | . . . . . Weapon 10 | 2 . 1 6 1 Energy Gun 2 | 1 . 1 . . Energy Cannon . | . . . . . Ballistic Gun 4 | 1 . . 3 . Ballistic Cannon . | . . . . . Launcher 2 | . . . 1 1 Special Weapon . | . . . . . Impact Weapon 2 | . . . 2 . Slashing Weapon . | . . . . . Piercing Weapon . | . . . . . Special Melee Weapon . | . . . . . Unidentified Prototypes 3 | . . 2 1 . Parts Lost 16 | . . 2 7 7 Power 2 | . . . 1 1 Propulsion 7 | . . 1 2 4 Utility 1 | . . . 1 . Weapon 6 | . . 1 3 2 Highest Loss Streak 4 | . . 2 2 4 To Critical Strikes . | . . . . . Average Slot Usage (%) 83 | . 85 71 89 78 Engine 8 | . 14 11 8 2 Wheel 12 | . 28 21 10 . Hover 9 | . . . 5 31 Flight 11 | . . . 23 . Storage 11 | . 14 11 11 11 Processor 6 | . . . 8 11 Protection 1 | . . 7 . . Energy Gun 3 | . 14 9 . . Ballistic Gun 10 | . 14 11 14 . Launcher 5 | . . . 5 11 Impact Weapon 2 | . . . . 11 Naked Turns . | . . . . . Heaviest Build 36 | 14 34 36 36 27 Greatest Support 32 | 26 26 32 32 28 Greatest Overweight (x) 2 | . 1 1 2 1 Average Overweight (x) . | . . . 1 . Largest Inventory Capacity 15 | 8 15 15 15 15 Average Capacity 14 | 7 8 15 15 15 Most Carried 15 | . 1 11 15 15 Average Carried 10 | . . 3 13 14 Final Capacity 15 | 8 15 15 15 15 Final Carried 15 | . 1 11 15 14 Class Distribution -------------------- 100% | Mutant Dominant Class ---------------- Mutant | -10/Materials Mutant | -9/Materials Mutant | -9/Storage Mutant | -9/Garrison Resources | -11 -10 -9 -9 -9 ----------- Run | Scr Mat Mat Sto Gar Matter Collected 934 | 260 42 154 376 102 Remotely . | . . . . . Salvage Created 1747 | . 200 523 818 206 Parts 96 | . 9 20 50 17 Haulers Intercepted 2 | . . 1 1 . Recyclers Shooed 2 | . 1 1 . . Parts Field Recycled . | . . . . . Retrieved Matter . | . . . . . Parts Self-Destructed . | . . . . . Prevented . | . . . . . Kills | -11 -10 -9 -9 -9 ------- Run | Scr Mat Mat Sto Gar Combat Hostiles Destroyed 44 | . 6 6 16 16 Melee 1 | . . . 1 . Guns 22 | . 6 6 10 . AOE 21 | . . . 5 16 Classes Destroyed 8 | . 2 4 2 . Worker 5 | . . 1 4 . Hauler 2 | . . 1 1 . Recycler 3 | . . 2 1 . Operator 1 | . . . 1 . Watcher 1 | . . . 1 . Swarmer 13 | . 2 . 4 7 Grunt 24 | . 4 4 10 6 Sentry 7 | . . 2 2 3 Best Kill Streak 7 | . 4 6 5 7 Combat Bots Only 7 | . 4 4 5 7 Max Kills in Single Turn 3 | . 1 1 2 3 Gunslinging . | . . . . . Exploded 3 | . . . 1 3 Melee 1 | . . . 1 . Uniques/NPCs Destroyed 1 | . . . 1 . 01-MTF (-9/Storage) Combat | -11 -10 -9 -9 -9 -------- Run | Scr Mat Mat Sto Gar Damage Taken 1716 | . 99 281 842 494 Core 430 | . 28 28 197 177 Absorbed by Shields . | . . . . . Core Remaining (%) 94 | 100 88 . . . Volleys Fired 150 | . 14 38 73 25 Largest 2 | . 2 2 2 1 Hottest 76 | . 70 70 76 30 Shots Fired 217 | . 28 63 101 25 Gun 186 | . 28 63 95 . Cannon . | . . . . . Launcher 31 | . . . 6 25 Special . | . . . . . Kinetic 146 | . 14 38 94 . Thermal 40 | . 14 25 1 . Explosive 31 | . . . 6 25 Electromagnetic . | . . . . . Robot Hit Streak 17 | . 10 17 9 5 Robot Miss Streak 6 | . 6 3 4 2 Penetration Max . | . . . . . Secondary Targets 1 | . 1 . . . Max Gunslinging Chain 1 | . 1 . . . Shots Hit Robots 144 | . 16 42 73 13 Core Hits 99 | . 11 21 41 26 Critical Kills . | . . . . . Critical Parts Destroyed . | . . . . . Critical Strikes 3 | . . 2 1 . Burn 2 | . . 2 . . Smash 1 | . . . 1 . Melee Attacks 14 | . . . 10 4 Impact 14 | . . . 10 4 Slashing . | . . . . . Piercing . | . . . . . Sneak Attacks 7 | . . . 7 . Combat Hostiles . | . . . . . Follow-up Attacks . | . . . . . Damage Inflicted 4428 | . 220 539 2137 1532 Guns 1724 | . 220 539 965 . Cannons . | . . . . . Explosions 1971 | . . . 518 1453 Melee 733 | . . . 654 79 Ramming . | . . . . . Kinetic 1422 | . 131 326 965 . Thermal 302 | . 89 213 . . Explosive 1971 | . . . 518 1453 Electromagnetic . | . . . . . Impact 733 | . . . 654 79 Slashing . | . . . . . Piercing . | . . . . . Highest Corruption . | . . . . . Average Corruption . | . . . . . Corruption Purged . | . . . . . Corruption Blocked . | . . . . . Overload Shots . | . . . . . Overflow Damage 235 | . . . 140 95 Projectiles . | . . . . . Explosions 87 | . . . 21 66 Melee 148 | . . . 119 29 Knockbacks 3 | . . . 3 . Impact 3 | . . . 3 . Kinetic . | . . . . . Secondary . | . . . . . Self-Inflicted Damage 211 | . . . 72 139 Shots 7 | . . . 2 5 Rammed . | . . . . . Targets Rammed . | . . . . . Kicked . | . . . . . Crushed . | . . . . . Highest Temperature 189 | . 81 189 18 8 Average Temperature 54 | . 38 72 6 3 Received Heat Transfer 639 | . 45 126 294 174 Siege Activations . | . . . . . Robots Corrupted . | . . . . . Combat Hostiles . | . . . . . Parts Fried . | . . . . . Impact Corruptions 4 | . . . 3 1 Robots Melted . | . . . . . Combat Hostiles . | . . . . . Parts Melted 5 | . . 4 1 . Heat Transferred 1036 | . 259 777 . . Parts Sabotaged . | . . . . . Parts Stolen . | . . . . . Parts Stripped . | . . . . . Power Chain Reactions . | . . . . . Missiles Intercepted . | . . . . . Alert | -11 -10 -9 -9 -9 ------- Run | Scr Mat Mat Sto Gar Peak Influence 1078 | . 170 283 899 1078 Initial 584 | . . 71 118 584 Average 438 | . 108 207 464 817 Maximum Alert Level 3 | . . 1 3 3 Low Security (%) 28 | 100 100 43 14 . Level 1 27 | . . 56 36 . Level 2 18 | . . . 28 21 Level 3 25 | . . . 20 78 Level 4 . | . . . . . Level 5 . | . . . . . High Security . | . . . . . Max Security . | . . . . . Squads Dispatched 5 | . . . 5 . Investigation 1 | . . . 1 . Extermination . | . . . . . Reinforcement 2 | . . . 2 . Assault . | . . . . . Garrison 2 | . . . 2 . Intercept . | . . . . . Searches Triggered . | . . . . . Construction Impeded . | . . . . . Haulers Reinforced . | . . . . . Active Scanning Responses . | . . . . . Cargo Convoy Interrupts . | . . . . . Stealth | -11 -10 -9 -9 -9 --------- Run | Scr Mat Mat Sto Gar Distress Signals 5 | . 1 2 2 . Communications Jammed . | . . . . . Distress Signals . | . . . . . Times Spotted 68 | . 10 11 32 15 Peak Tracking Total 7 | . 5 7 5 5 Tactical Retreats 1 | . . 1 . . Traps | -11 -10 -9 -9 -9 ------- Run | Scr Mat Mat Sto Gar Traps Triggered 2 | . . . . 2 Indirectly . | . . . . . Trap Hack Attempts . | . . . . . Triggered . | . . . . . Disarmed . | . . . . . Reprogrammed . | . . . . . Reused . | . . . . . Traps Extracted . | . . . . . Installed . | . . . . . Triggered . | . . . . . Machines | -11 -10 -9 -9 -9 ---------- Run | Scr Mat Mat Sto Gar Machines Disabled 7 | . . . 4 3 Max in Single Turn 1 | . . . 1 1 Machines Sabotaged . | . . . . . Garrisons Compromised . | . . . . . Overloaded Fab Kills . | . . . . . Hacking | -11 -10 -9 -9 -9 --------- Run | Scr Mat Mat Sto Gar Machines Accessed 7 | . 2 . 4 1 Terminals 6 | . 2 . 3 1 Fabricators . | . . . . . Repair Stations . | . . . . . Recycling Units . | . . . . . Scanalyzers . | . . . . . Garrison Access 1 | . . . 1 . Total Hacks 14 | . 6 . 6 2 Successful 7 | . 3 . 4 . Failed 7 | . 3 . 2 2 Catastrophic 2 | . . . 1 1 Database Lockouts . | . . . . . Manual 1 | . 1 . . . Terminals 13 | . 6 . 5 2 Fabricators . | . . . . . Repair Stations . | . . . . . Recycling Units . | . . . . . Scanalyzers . | . . . . . Garrison Access 1 | . . . 1 . Terminal Hacks 6 | . 3 . 3 . Robot Analysis 1 | . 1 . . . Prototype ID Bank 1 | . 1 . . . Open Door 3 | . . . 3 . Zone Layout 1 | . 1 . . . Fabricator Hacks . | . . . . . Repair Station Hacks . | . . . . . Recycling Unit Hacks . | . . . . . Scanalyzer . | . . . . . Garrison Access Hacks 1 | . . . 1 . Unlock Access 1 | . . . 1 . Unauthorized Hacks . | . . . . . Terminals . | . . . . . Fabricators . | . . . . . Repair Stations . | . . . . . Recycling Units . | . . . . . Scanalyzers . | . . . . . Garrison Access . | . . . . . Data Cores Recovered . | . . . . . Used . | . . . . . Hacking Detections 6 | . 2 . 3 1 Full Trace Events 1 | . . . 1 . Feedback Events . | . . . . . Feedback Blocked . | . . . . . Robot Schematics Acquired . | . . . . . Robots Built . | . . . . . Authchips . | . . . . . Time . | . . . . . Total Robot Build Rating . | . . . . . Part Schematics Acquired . | . . . . . Parts Built . | . . . . . Authchips . | . . . . . Time . | . . . . . Total Part Build Rating . | . . . . . Parts Repaired . | . . . . . Time . | . . . . . Parts Recycled . | . . . . . Recycled Matter . | . . . . . Retrieved Matter . | . . . . . Retrieved Components . | . . . . . Parts Scanalyzed . | . . . . . Part Schematics Acquired . | . . . . . Parts Damaged . | . . . . . Bothacking | -11 -10 -9 -9 -9 ------------ Run | Scr Mat Mat Sto Gar Used RIF Installer . | . . . . . Robots Hacked . | . . . . . Non-combat . | . . . . . Combat . | . . . . . Robot Hacks Applied . | . . . . . Relay Couplers Released . | . . . . . Fabnet Peak Effective % . | . . . . . Robots Rewired . | . . . . . Allies Hacked . | . . . . . Hacks Repelled . | . . . . . Allies | -11 -10 -9 -9 -9 -------- Run | Scr Mat Mat Sto Gar Total Allies 2 | . . . 2 . Largest Group 2 | . . . 2 1 Highest-Rated Group 110 | . . . 110 15 Highest-Rated Ally 100 | . . . 100 15 Total Orders . | . . . . . Ally Attacks 23 | . . . 21 2 Total Damage 738 | . . . 691 47 Kills 9 | . . . 8 1 Allies Corrupted 1 | . . . 1 . Allies Melted . | . . . . . Intel | -11 -10 -9 -9 -9 ------- Run | Scr Mat Mat Sto Gar Robot Analysis Total 1 | . 1 . . . Derelict Logs Recovered . | . . . . . Drone Launches . | . . . . . Drone Recoveries . | . . . . . Exploration | -11 -10 -9 -9 -9 ------------- Run | Scr Mat Mat Sto Gar Turns Passed 1581 | 32 191 279 757 322 Spaces Moved 991 | 27 157 147 416 244 Core 2 | 2 . . . . Treads . | . . . . . Legs . | . . . . . Wheels 711 | 25 157 147 382 . Hover 276 | . . . 32 244 Flight 2 | . . . 2 . Fastest Speed 48 | 50 90 100 48 48 Average Speed 104 | 86 91 110 115 93 Slowest Speed 174 | 90 105 115 174 116 Overloaded Moves . | . . . . . Propulsion Burnouts . | . . . . . Robots Hopped . | . . . . . Cave-ins Triggered . | . . . . . Exploration Rate (%) 34 | 5 41 13 76 37 Regions Visited 4 Branch Regions 1 Pre-discovered Areas . | . . . . . Known Exits Taken 1 | . . . 1 . Unknown Exits Taken 3 | 1 1 1 . . Scrap Searched . | . . . . . Spaces Dug . | . . . . . Terrain Destroyed 187 | . . . 63 124 Melee . | . . . . . Projectile . | . . . . . AOE 187 | . . . 63 124 Terrain Rammed . | . . . . . Walls Destroyed . | . . . . . Machines Disabled . | . . . . . Actions | -11 -10 -9 -9 -9 --------- Run | Scr Mat Mat Sto Gar Total 1281 | 32 175 199 569 306 Wait 42 | . 2 . 34 6 Move 987 | 26 156 146 415 244 Hop . | . . . . . Pick Up 20 | . 1 10 9 . Fast Attach 24 | 6 1 4 13 . Attach 3 | . . . 2 1 Detach 1 | . . . 1 . Swap 2 | . . . 2 . Drop 12 | . 1 1 10 . Fire 150 | . 14 38 73 25 Melee 14 | . . . 10 4 Ram . | . . . . . Kick . | . . . . . Crush . | . . . . . Escape Stasis 26 | . . . . 26 Rewire . | . . . . . Trap . | . . . . . Miscellaneous . | . . . . . Route ------- -11/Scrapyard -10/Materials -9/Materials -9/Storage (discovered 2 exits: [*Mat] / Gar) -9/Garrison (discovered 1 exit: [*Mat]) History --------- Turn | Location | Event 16 | -11/Scrapyard | Discovered new exit (range 16) 33 | -11/Scrapyard | Entered Materials 166 | -10/Materials | Discovered new exit (range 15) 224 | -10/Materials | Entered another Materials area 224 | -9/Materials | Evolved 2 slots: Propulsion x2 302 | -9/Materials | Build established: Mutant 485 | -9/Materials | Discovered new exit (range 6) 503 | -9/Materials | Entered Storage 934 | -9/Storage | Core integrity fell below 50% 934 | -9/Storage | Discovered new exit (range 18) 939 | -9/Storage | Met 01-MTF 1231 | -9/Storage | Identified exit to Garrison 1251 | -9/Storage | Destroyed 01-MTF 1260 | -9/Storage | Entered Garrison 1260 | -9/Garrison | Accompanied by 1 ally 1302 | -9/Garrison | Triggered checkpoint 1408 | -9/Garrison | Triggered checkpoint 1416 | -9/Garrison | Triggered checkpoint 1443 | -9/Garrison | Destroyed 7 combat bots 1510 | -9/Garrison | Triggered checkpoint 1564 | -9/Garrison | Triggered checkpoint 1565 | -9/Garrison | Discovered new exit (range 14) 1570 | -9/Garrison | Core integrity fell below 20% 1582 | -9/Garrison | Destroyed by G-34 Mercenary with Small Laser Last Messages --------------- 01505_ Field strength at 2. 01506_ Stasis field depleted. 01510_ Beams of light sweep through the air. An alarm sounds. 01512_ G-34 Mercenary destroyed. 01512_ Imp. Hover Unit destroyed. 01518_ G-34 Mercenary destroyed. 01564_ Beams of light sweep through the air. An alarm sounds. 01565_ EXIT=FOUND 01567_ G-34 Mercenary destroyed. 01567_ Mni. Grenade Launcher destroyed. 01568_ Imp. Hover Unit destroyed. 01569_ The unstable cave ceiling collapses. 01570_ Imp. Hover Unit destroyed. 01570_ Destroyed Imp. Hover Unit. 01570_ G-34 Mercenary destroyed. 01570_ Garrison Terminal disabled. 01580_ The unstable cave ceiling collapses. 01580_ Destroyed Heat Sink. 01580_ G-34 Mercenary system corrupted by crushing effect. 01580_ Mni. Grenade Launcher destroyed. Map ----- +----------------------------------------------------+ | ?# "??????????????????????????????? | | ?# "??????????????????????????????? | | ?### ## ## #??????????????????????????????? | | ???# ## ## ###########????????????????????? | | ???# #????????????????????? | | ???# #????????????????????? | | ???# ######## #????????????????????? | | ???# ## # ###??????# #????????????????????? | | ???# ## %####????????# #????????????????????? | | ???# #######???????????# #????????????????????? | | ???# #?????????????????# #????????????????????? | | ???# #?????????????????# #????????????????????? | | ???# #?????????????????# #????????????????????? | | ???# #?????????????????# #????????????????????? | | #### #?????????????????# #????????????????????? | | #?????????????????# #????????????????????? | | #?????????????????# #????????????????????? | | #?????????????????# #????????????????????? | | ########?????????????????# #????????????????????? | | ?????????????????????????# #????????????????????? | | ?????????????????????????# #????????????????????? | | ?????????????????????????# #????????????????????? | | ?????????????????????????# #????????????????????? | | ????????????????????# ??## #????????????????????? | | ????????????????# ###=% # #### # < #????????? | | ??????????????# g@ !% ????????? | | ??????????????# =%[ g ????????? | | ??????????????# #### ## ##### #?????????? | | ????????????????????########???????? #?????????? | | ?????????????????????????????????????????????????? | | ?????????????????????????????????????????????????? | | ?????????????????????????????????????????????????? | | ?????????????????????????????????????????????????? | | ?????????????????????????????????????????????????? | | ?????????????????????????????????????????????????? | | ?????????????????????????????????????????????????? | | ?????????????????????????????????????????????????? | | ?????????????????????????????????????????????????? | | ?????????????????????????????????????????????????? | | ?????????????????????????????????????????????????? | | ?????????????????????????????????????????????????? | | ?????????????????????????????????????????????????? | | ?????????????????????????????????????????????????? | | ?????????????????????????????????????????????????? | | ?????????????????????????????????????????????????? | | ?????????????????????????????????????????????????? | | ?????????????????????????????????????????????????? | | ?????????????????????????????????????????????????? | | ?????????????????????????????????????????????????? | | ?????????????????????????????????????????????????? | +----------------------------------------------------+ Best States ------------- Heat Dissipation 28 Energy Generation 14 Energy Capacity 280 Matter Stores 300 Matter Capacity 300 Sight Range 18 Terrain Scan Density 10 Armor Coverage 150 Evasion (%) 55 Salvage Targeting 1 Item Schematics ----------------- None Robot Schematics ------------------ None Fabricated ------------ Nothing Alien Tech Used ----------------- None Achievements -------------- None Challenges ------------ None Game ------ Seed CatalystMetafiberField Manual? 1 Play Time 00:18:15 Cumulative 309.9 hours Start 2022.08.11 @ 15:33:12 End 2022.08.11 @ 15:58:30 Sessions 1 Manual Loads 0 Difficulty Rogue Special Mode None Game No. 151 Rogue 147 Adventurer 0 Explorer 4 Win Type - Total 16 Types 4/0/2/4/1/2/3/0/0 Lore% 77 Gallery% 84 Achievement% 75 Wizard Run 0 Options --------- ASCII 0 Keyboard 0 Movement Mouse Keybinds 0 Fullscreen 1 Font 18/SmallcapsGlow Map View 76x50 Tactical HUD 1 Map Filters NONE Filters NONE Steam 1 RUN: c55fe0e9-65f2-4f98-b7b4-3660269bddff